fUSD/lending_fUSD_20250515
["ID","MTS","AMOUNT","RATE_DAILY","PERIOD"]
[361138210,1747301364446,-151.0,0.00011931,2]
[361138211,1747301364475,-215.202106,0.00011931,2]
[361138212,1747301364505,-215.202106,0.00011931,2]
[361138213,1747301364537,-883.01165,0.00011931,2]
[361138214,1747301364567,-883.01165,0.00011931,2]
[361138215,1747301364597,-151.0,0.00011931,2]
[361138216,1747301364627,-2470.556945,0.00011931,2]
[361138217,1747301364656,-151.0,0.00011931,2]
[361138218,1747301364686,-2470.55695,0.00011931,2]
[361138219,1747301364716,-299.636792,0.00011932,2]
[361138220,1747301364744,-151.0,0.00011932,2]
[361138221,1747301364778,-151.0,0.00011932,2]
[361138222,1747301364806,-151.0,0.00011932,2]
[361138223,1747301364833,-243.960484,0.00011932,2]
[361138224,1747301364860,-151.0,0.00011932,2]
[361138225,1747301364887,-151.0,0.00011932,2]
[361138226,1747301364915,-243.960484,0.00011932,2]
[361138227,1747301364942,-151.0,0.00011932,2]
[361138228,1747301364970,-270.225954,0.00011932,2]
[361138229,1747301364999,-215.202106,0.00011932,2]
[361138230,1747301365027,-215.202106,0.00011932,2]
[361138231,1747301365056,-883.01165,0.00011932,2]
[361138232,1747301365084,-883.01165,0.00011932,2]
[361138233,1747301365112,-400.0,0.00011935,2]
[361138234,1747301365140,-552.0,0.00011945,2]
[361138235,1747301365168,-574.0,0.00011945,2]
[361138236,1747301365196,-1393.07,0.00011957,2]
[361138237,1747301365223,-457.51,0.00011957,2]
[361138238,1747301365252,-457.51,0.00011957,2]
[361138239,1747301365280,-466.64,0.00011957,2]
[361138240,1747301365310,-457.51,0.00011957,2]
[361138241,1747301365554,-152.883547,0.00011967,2]
[361138242,1747301365587,-229.325322,0.00011967,2]
[361138243,1747301365617,-168.0,0.00011973,2]
[361138244,1747301365648,-2203.0,0.00011973,2]
[361138245,1747301365680,-2977.0,0.00011973,2]
[361138246,1747301365710,-552.0,0.00011973,2]
[361138247,1747301365739,-574.0,0.00011973,2]
[361138248,1747301365771,-151.0,0.00011999,2]
[361138249,1747301365799,-243.960484,0.00011999,2]
[361138250,1747301365828,-243.960484,0.00011999,2]
[361138251,1747301365857,-215.202106,0.00011999,2]
[361138252,1747301365885,-215.202106,0.00011999,2]
[361138253,1747301365914,-500.0,0.00011999,2]
[361138254,1747301365944,-500.0,0.00011999,2]
[361138255,1747301365972,-500.0,0.00011999,2]
[361138256,1747301366001,-500.0,0.00011999,2]
[361138257,1747301366031,-500.0,0.00011999,2]
[361138258,1747301366059,-500.0,0.00011999,2]
[361138259,1747301366088,-1262.3,0.00011999,2]
[361138260,1747301366116,-1262.3,0.00011999,2]
[361138261,1747301366145,-1262.3,0.00011999,2]
[361138262,1747301366173,-1262.3,0.00011999,2]
[361138263,1747301366203,-1262.3,0.00011999,2]
[361138264,1747301366233,-1262.3,0.00011999,2]
[361138265,1747301366261,-1000.0,0.00012,2]
[361138266,1747301366290,-1000.0,0.00012,2]
[361138267,1747301366319,-1000.0,0.00012,2]
[361138268,1747301366348,-26249.26268567,0.00012,2]
[361138286,1747301431918,-165.69,0.00010752,2]
[361138287,1747301431934,-150.0,0.00010999,2]
[361138288,1747301431949,-717.0,0.00010999,2]
[361138289,1747301431962,-473.18924303,0.00010999,2]
[361138290,1747301431971,-379.47296317,0.00011,2]
[361138291,1747301432006,-153.70703683,0.00011,2]
[361138292,1747301432015,-101925.43453186,0.00011,2]
[361138293,1747301432027,-1100.43320275,0.00011,2]
[361138295,1747301432049,-2057.69325664,0.00011,2]
[361138299,1747301432084,-24836.06951028,0.00011,2]
[361138301,1747301432094,-806.45118564,0.00011185,2]
[361138303,1747301432104,-5000.0,0.00011264,2]
[361138305,1747301432115,-400.0,0.00011363,2]
[361138306,1747301432125,-500.0,0.00011363,2]
[361138307,1747301432135,-408.46239329,0.00011363,2]
[361138308,1747301432145,-406.43967087,0.00011363,2]
[361138309,1747301432154,-400.0,0.00011363,2]
[361138310,1747301432164,-374.89742002,0.00011363,2]
[361138311,1747301432174,-539.14,0.00011363,2]
[361138312,1747301432184,-412.15,0.00011363,2]
[361138313,1747301432194,-400.0,0.00011363,2]
[361138314,1747301432203,-400.0,0.00011363,2]
[361138315,1747301432213,-400.0,0.00011363,2]
[361138316,1747301432223,-403.143096,0.00011363,2]
[361138317,1747301432232,-400.0,0.00011363,2]
[361138318,1747301432241,-403.62307557,0.00011363,2]
[361138319,1747301432250,-400.0,0.00011363,2]
[361138320,1747301432260,-510.96944042,0.00011363,2]
[361138321,1747301432270,-400.0,0.00011363,2]
[361138322,1747301432280,-400.0,0.00011363,2]
[361138323,1747301432290,-400.0,0.00011363,2]
[361138324,1747301432299,-401.70265225,0.00011363,2]
[361138325,1747301432309,-404.37639041,0.00011363,2]
[361138326,1747301432318,-456.33,0.00011363,2]
[361138327,1747301432328,-402.31741403,0.00011363,2]
[361138328,1747301432337,-400.0,0.00011363,2]
[361138329,1747301432348,-400.0,0.00011363,2]
[361138330,1747301432358,-404.64633945,0.00011363,2]
[361138331,1747301432368,-401.36266908,0.00011363,2]
[361138332,1747301432377,-400.0,0.00011363,2]
[361138333,1747301432387,-402.77630884,0.00011363,2]
[361138334,1747301432397,-659.22,0.00011363,2]
[361138335,1747301432406,-400.0,0.00011363,2]
[361138336,1747301432415,-400.0,0.00011363,2]
[361138337,1747301432425,-400.0,0.00011363,2]
[361138338,1747301432435,-400.0,0.00011363,2]
[361138339,1747301432444,-400.0,0.00011363,2]
[361138340,1747301432453,-403.00145658,0.00011363,2]
[361138341,1747301432463,-400.0,0.00011363,2]
[361138342,1747301432472,-418.79,0.00011363,2]
[361138343,1747301432482,-426.45,0.00011363,2]
[361138344,1747301433039,-236.96,0.00011363,2]
[361138345,1747301433057,-400.0,0.00011363,2]
[361138346,1747301433075,-400.0,0.00011363,2]
[361138347,1747301433097,-1363.07,0.00011363,2]
[361138348,1747301433107,-638.54,0.00011363,2]
[361138349,1747301433117,-400.0,0.00011364,2]
[361138350,1747301433127,-500.0,0.00011364,2]
[361138351,1747301433136,-107.59795477,0.00011364,2]
[361138352,1747301433149,-292.40204523,0.00011364,2]
[361138353,1747301433159,-482.04,0.00011364,2]
[361138354,1747301433169,-153.539306,0.00011364,2]
[361138355,1747301433179,-996.78810934,0.00011364,2]
[361138356,1747301433190,-1687.21721161,0.00011364,2]
[361138357,1747301433231,-1040.73467905,0.00011364,2]
[361138358,1747301433241,-151.0,0.00011364,2]
[361138359,1747301433251,-151.0,0.00011364,2]
[361138360,1747301433262,-151.0,0.00011364,2]
[361138361,1747301433272,-151.0,0.00011364,2]
[361138362,1747301433282,-400.0,0.00011364,2]
[361138363,1747301433292,-400.0,0.00011364,2]
[361138364,1747301433302,-500.0,0.00011364,2]
[361138365,1747301433312,-1766.73,0.00011364,2]
[361138366,1747301433322,-1066.69,0.00011364,2]
[361138367,1747301433333,-1342.99,0.00011364,2]
[361138368,1747301433347,-400.0,0.00011364,2]
[361138369,1747301433359,-151.0,0.00011364,2]
[361138370,1747301433370,-151.0,0.00011364,2]
[361138371,1747301433380,-151.0,0.00011364,2]
[361138372,1747301433391,-487.73,0.00011364,2]
[361138373,1747301433400,-400.0,0.00011364,2]
[361138374,1747301433409,-671.31,0.00011364,2]
[361138375,1747301433418,-1156.4,0.00011364,2]
[361138376,1747301433427,-229.36341,0.00011364,2]
[361138377,1747301433437,-229.36341,0.00011364,2]
[361138378,1747301433447,-229.36341,0.00011364,2]
[361138379,1747301433457,-229.36341,0.00011364,2]
[361138380,1747301433467,-229.36341,0.00011364,2]
[361138381,1747301433477,-229.36341,0.00011364,2]
[361138382,1747301433487,-151.0,0.00011364,2]
[361138383,1747301433497,-151.0,0.00011364,2]
[361138384,1747301433507,-151.0,0.00011364,2]
[361138385,1747301433517,-956.67,0.00011364,2]
[361138386,1747301433527,-660.77,0.00011364,2]
[361138387,1747301433537,-400.0,0.00011364,2]
[361138388,1747301433547,-400.0,0.00011364,2]
[361138389,1747301433557,-2635.91,0.00011364,2]
[361138390,1747301433567,-400.0,0.00011364,2]
[361138391,1747301433577,-400.0,0.00011364,2]
[361138392,1747301433587,-400.0,0.00011364,2]
[361138393,1747301433599,-219.929355,0.00011364,2]
[361138394,1747301433610,-2230.92,0.00011364,2]
[361138395,1747301433620,-219.929355,0.00011364,2]
[361138396,1747301433630,-400.0,0.00011364,2]
[361138397,1747301433640,-400.0,0.00011364,2]
[361138398,1747301433650,-400.0,0.00011364,2]
[361138399,1747301433660,-219.929355,0.00011364,2]
[361138400,1747301433669,-219.929355,0.00011364,2]
[361138401,1747301433680,-498.73,0.00011364,2]
[361138402,1747301433690,-151.0,0.00011364,2]
[361138403,1747301433699,-593.60006766,0.00011364,2]
[361138404,1747301437285,-374.66993234,0.00011364,2]
[361138405,1747301437295,-151.0,0.00011364,2]
[361138407,1747301437303,-400.0,0.00011364,2]
[361138408,1747301437312,-418.14,0.00011364,2]
[361138409,1747301437321,-151.0,0.00011364,2]
[361138410,1747301437330,-151.0,0.00011364,2]
[361138411,1747301437339,-151.0,0.00011364,2]
[361138412,1747301437349,-400.0,0.00011364,2]
[361138413,1747301437358,-1909.09,0.00011364,2]
[361138414,1747301437368,-559.73,0.00011364,2]
[361138415,1747301437377,-522.8,0.00011364,2]
[361138416,1747301437387,-638.58,0.00011364,2]
[361138417,1747301437396,-400.0,0.00011364,2]
[361138418,1747301437405,-4304.42,0.00011364,2]
[361138419,1747301437414,-617.27,0.00011364,2]
[361138420,1747301437424,-400.0,0.00011364,2]
[361138421,1747301437434,-400.0,0.00011364,2]
[361138422,1747301437443,-229.36341,0.00011365,2]
[361138423,1747301437453,-229.36341,0.00011365,2]
[361138424,1747301437463,-229.36341,0.00011365,2]
[361138425,1747301437473,-229.36341,0.00011365,2]
[361138426,1747301437482,-229.36341,0.00011365,2]
[361138427,1747301437492,-229.36341,0.00011365,2]
[361138428,1747301437503,-256.514921,0.00011365,2]
[361138429,1747301437512,-219.929355,0.00011365,2]
[361138430,1747301437523,-219.929355,0.00011365,2]
[361138431,1747301437532,-219.929355,0.00011365,2]
[361138432,1747301437541,-219.929355,0.00011365,2]
[361138433,1747301437551,-219.929355,0.00011365,2]
[361138435,1747301437560,-219.929355,0.00011365,2]
[361138437,1747301437569,-151.0,0.00011365,2]
[361138439,1747301437579,-151.0,0.00011365,2]
[361138441,1747301437588,-151.0,0.00011365,2]
[361138443,1747301437597,-151.0,0.00011365,2]
[361138444,1747301437606,-151.0,0.00011365,2]
[361138447,1747301437616,-400.0,0.00011376,2]
[361138449,1747301437625,-249.49778673,0.00011376,2]
[361138450,1747301437635,-315.39705749,0.00011376,2]
[361138453,1747301437645,-400.0,0.00011376,2]
[361138455,1747301437654,-400.0,0.00011376,2]
[361138457,1747301437664,-400.0,0.00011376,2]
[361138459,1747301437673,-407.09064838,0.00011376,2]
[361138460,1747301437684,-400.0,0.00011376,2]
[361138462,1747301437693,-400.0,0.00011376,2]
[361138464,1747301437702,-506.90356105,0.00011376,2]
[361138466,1747301437712,-400.0,0.00011376,2]
[361138468,1747301437721,-409.99560028,0.00011376,2]
[361138470,1747301437730,-400.0,0.00011376,2]
[361138472,1747301437739,-407.62153292,0.00011376,2]
[361138474,1747301437748,-400.0,0.00011376,2]
[361138476,1747301437757,-400.0,0.00011376,2]
[361138478,1747301437768,-400.91118533,0.00011376,2]
[361138480,1747301437780,-406.04049205,0.00011376,2]
[361138482,1747301437789,-400.0,0.00011376,2]
[361138484,1747301437798,-400.0,0.00011376,2]
[361138486,1747301437807,-406.60901979,0.00011376,2]
[361138489,1747301437817,-400.0,0.00011376,2]
[361138491,1747301437826,-405.78074549,0.00011376,2]
[361138494,1747301437835,-400.0,0.00011376,2]
[361138496,1747301437845,-173.99617365,0.00011376,2]
[361138499,1747301437856,-178.17862333,0.00011376,2]
[361138503,1747301437881,-229.88564777,0.00011376,2]
[361138505,1747301437892,-403.15610318,0.00011376,2]
[361138507,1747301437900,-400.0,0.00011376,2]
[361138509,1747301437909,-400.0,0.00011376,2]
[361138511,1747301437919,-400.0,0.00011376,2]
[361138513,1747301437928,-400.0,0.00011376,2]
[361138515,1747301437937,-400.0,0.00011376,2]
[361138517,1747301437946,-400.0,0.00011376,2]
[361138518,1747301437955,-146.90827902,0.00011376,2]
[361138520,1747301437966,-255.12324521,0.00011376,2]
[361138522,1747301437975,-400.0,0.00011376,2]
[361138524,1747301437984,-156.44985348,0.00011376,2]
[361138526,1747301437994,-400.0,0.00011376,2]
[361138528,1747301438003,-402.77869566,0.00011376,2]
[361138530,1747301438012,-408.6200664,0.00011376,2]
[361138532,1747301438022,-357.09853488,0.00011376,2]
[361138534,1747301438031,-400.0,0.00011376,2]
[361138536,1747301438041,-319.60247393,0.00011376,2]
[361138538,1747301438052,-80.39752607,0.00011376,2]
[361138540,1747301438061,-400.0,0.00011376,2]
[361138542,1747301438072,-407.89603636,0.00011376,2]
[361138544,1747301438080,-416.06197095,0.00011376,2]
[361138563,1747301438249,-509.31337342,0.00011376,2]
[361138565,1747301438258,-411.64440593,0.00011376,2]
[361138567,1747301438267,-400.0,0.00011376,2]
[361138569,1747301438277,-400.0,0.00011376,2]
[361138571,1747301438286,-400.0,0.00011376,2]
[361138573,1747301438296,-327.87636724,0.00011376,2]
[361138575,1747301438305,-400.0,0.00011376,2]
[361138577,1747301438315,-400.0,0.00011376,2]
[361138579,1747301438324,-338.358759,0.00011376,2]
[361138580,1747301438335,-161.641241,0.00011376,2]
[361138581,1747301438344,-400.0,0.00011376,2]
[361138582,1747301438354,-401.5064859,0.00011376,2]
[361138583,1747301438363,-400.0,0.00011376,2]
[361138584,1747301438371,-400.0,0.00011376,2]
[361138585,1747301438380,-450.0,0.00011376,2]
[361138586,1747301438390,-400.0,0.00011376,2]
[361138587,1747301438399,-400.0,0.00011376,2]
[361138588,1747301438407,-408.60165705,0.00011376,2]
[361138589,1747301438416,-400.0,0.00011376,2]
[361138590,1747301438425,-406.49113835,0.00011376,2]
[361138591,1747301438435,-407.65546694,0.00011376,2]
[361138592,1747301438444,-400.0,0.00011376,2]
[361138593,1747301438452,-400.0,0.00011376,2]
[361138595,1747301438462,-542.18020907,0.00011376,2]
[361138597,1747301438471,-401.6129621,0.00011376,2]
[361138599,1747301438482,-406.31620219,0.00011376,2]
[361138601,1747301438492,-400.0,0.00011376,2]
[361138603,1747301438501,-407.02554607,0.00011376,2]
[361138605,1747301438510,-44.55373622,0.00011376,2]
[361138607,1747301438522,-355.44626378,0.00011376,2]
[361138609,1747301438532,-337.01373276,0.00011376,2]
[361138624,1747301442896,-1037.5,0.00011363,2]
[361138632,1747301445363,-338.63,0.00011363,2]
[361138634,1747301445372,-209.839979,0.00011364,2]
[361138636,1747301445382,-209.839979,0.00011364,2]
[361138638,1747301445391,-2241.690042,0.00011364,2]
[361138640,1747301445401,-6639.30681556,0.00011364,2]
[361138646,1747301481235,-0.00388577,0.00011364,2]
[361138647,1747301481894,-2969.47925667,0.00011364,2]
[361138648,1747301481903,-430.26,0.00011364,2]
[361138649,1747301481911,-154.02,0.00011364,2]
[361138650,1747301481920,-209.839979,0.00011364,2]
[361138651,1747301481929,-209.839979,0.00011364,2]
[361138652,1747301481938,-401.25,0.00011364,2]
[361138653,1747301482017,-209.839979,0.00011365,2]
[361138654,1747301482026,-209.839979,0.00011365,2]
[361138655,1747301482035,-209.839979,0.00011365,2]
[361138656,1747301482044,-209.839979,0.00011365,2]
[361138657,1747301482053,-209.839979,0.00011365,2]
[361138658,1747301482063,-209.839979,0.00011365,2]
[361138659,1747301482071,-68.88540278,0.00011376,2]
[361138660,1747301482080,-400.0,0.00011376,2]
[361138661,1747301482089,-400.0,0.00011376,2]
[361138662,1747301482100,-400.0,0.00011376,2]
[361138663,1747301482109,-515.76605733,0.00011376,2]
[361138664,1747301482117,-400.0,0.00011376,2]
[361138665,1747301482127,-400.0,0.00011376,2]
[361138666,1747301482136,-400.0,0.00011376,2]
[361138667,1747301482149,-400.0,0.00011376,2]
[361138668,1747301482162,-148.08300161,0.00011376,2]
[361138669,1747301482206,-251.91699839,0.00011376,2]
[361138670,1747301482221,-400.0,0.00011376,2]
[361138671,1747301482235,-400.0,0.00011376,2]
[361138672,1747301482246,-276.37595089,0.00011376,2]
[361138673,1747301482258,-400.0,0.00011376,2]
[361138674,1747301482268,-404.05574568,0.00011376,2]
[361138675,1747301482277,-511.75,0.00011376,2]
[361138676,1747301482288,-400.0,0.00011376,2]
[361138677,1747301482300,-418.72249486,0.00011376,2]
[361138678,1747301482310,-400.0,0.00011376,2]
[361138679,1747301482330,-400.0,0.00011376,2]
[361138680,1747301482340,-400.0,0.00011376,2]
[361138681,1747301482349,-400.0,0.00011376,2]
[361138682,1747301482358,-400.0,0.00011376,2]
[361138683,1747301482367,-400.0,0.00011376,2]
[361138684,1747301482376,-400.0,0.00011376,2]
[361138685,1747301482388,-400.0,0.00011376,2]
[361138686,1747301482397,-400.0,0.00011376,2]
[361138687,1747301482407,-229.36341,0.00011376,2]
[361138688,1747301482417,-402.64022991,0.00011376,2]
[361138689,1747301482427,-229.36341,0.00011376,2]
[361138690,1747301482436,-229.36341,0.00011376,2]
[361138691,1747301482446,-229.36341,0.00011376,2]
[361138692,1747301482455,-400.0,0.00011376,2]
[361138693,1747301482464,-403.67151553,0.00011376,2]
[361138694,1747301482473,-229.36341,0.00011376,2]
[361138695,1747301482483,-229.36341,0.00011376,2]
[361138696,1747301482492,-229.36341,0.00011376,2]
[361138697,1747301482501,-229.36342,0.00011376,2]
[361138698,1747301482514,-400.0,0.00011376,2]
[361138699,1747301482524,-400.0,0.00011376,2]
[361138700,1747301482533,-400.0,0.00011376,2]
[361138701,1747301482543,-435.02,0.00011376,2]
[361138702,1747301482552,-400.0,0.00011376,2]
[361138703,1747301482562,-400.0,0.00011376,2]
[361138704,1747301482572,-405.81968109,0.00011376,2]
[361138705,1747301482582,-400.0,0.00011376,2]
[361138706,1747301482591,-400.0,0.00011376,2]
[361138707,1747301482600,-400.0,0.00011376,2]
[361138708,1747301482610,-400.0,0.00011376,2]
[361138709,1747301482619,-450.0,0.00011376,2]
[361138710,1747301482628,-400.0,0.00011376,2]
[361138711,1747301482640,-400.0,0.00011376,2]
[361138712,1747301482649,-219.929355,0.00011376,2]
[361138713,1747301482659,-219.929355,0.00011376,2]
[361138714,1747301482668,-400.0,0.00011376,2]
[361138715,1747301482678,-219.929355,0.00011376,2]
[361138716,1747301482688,-400.0,0.00011376,2]
[361138717,1747301482698,-219.929355,0.00011376,2]
[361138718,1747301482707,-219.929355,0.00011376,2]
[361138719,1747301482717,-400.0,0.00011376,2]
[361138720,1747301482726,-401.35933989,0.00011376,2]
[361138721,1747301482736,-219.929355,0.00011376,2]
[361138722,1747301482745,-219.929355,0.00011376,2]
[361138723,1747301482754,-400.0,0.00011376,2]
[361138724,1747301482764,-219.929355,0.00011376,2]
[361138725,1747301482773,-219.929355,0.00011376,2]
[361138726,1747301482783,-219.929357,0.00011376,2]
[361138727,1747301482792,-400.0,0.00011376,2]
[361138728,1747301482802,-400.0,0.00011376,2]
[361138729,1747301482811,-400.0,0.00011376,2]
[361138730,1747301482819,-151.0,0.00011376,2]
[361138731,1747301482829,-199.636526,0.00011376,2]
[361138732,1747301482838,-400.0,0.00011376,2]
[361138733,1747301482847,-400.0,0.00011376,2]
[361138734,1747301482856,-151.0,0.00011376,2]
[361138735,1747301482865,-400.0,0.00011376,2]
[361138736,1747301482874,-400.0,0.00011376,2]
[361138737,1747301482883,-400.0,0.00011376,2]
[361138738,1747301482893,-400.0,0.00011376,2]
[361138739,1747301482902,-400.0,0.00011376,2]
[361138740,1747301482911,-400.0,0.00011376,2]
[361138741,1747301482919,-400.0,0.00011376,2]
[361138742,1747301482928,-400.0,0.00011376,2]
[361138743,1747301482937,-400.0,0.00011376,2]
[361138744,1747301482946,-209.839979,0.00011376,2]
[361138745,1747301482955,-241.61059368,0.00011376,2]
[361138746,1747301482963,-209.839979,0.00011376,2]
[361138747,1747301482973,-500.0,0.00011376,2]
[361138748,1747301482982,-209.839979,0.00011376,2]
[361138749,1747301482992,-209.839979,0.00011376,2]
[361138750,1747301483001,-209.839979,0.00011376,2]
[361138751,1747301483011,-400.0,0.00011376,2]
[361138752,1747301483021,-500.0,0.00011382,2]
[361138753,1747301483030,-65.0202815,0.00011443,2]
[361138754,1747301483044,-434.9797185,0.00011443,2]
[361138755,1747301483053,-407.76724387,0.00011444,2]
[361138756,1747301483063,-202.00734562,0.00011444,2]
[361138757,1747301483072,-170.0,0.000115,2]
[361138758,1747301483081,-340.0,0.000115,2]
[361138759,1747301483091,-170.0,0.000115,2]
[361138760,1747301483100,-167.40701986,0.00011538,2]
[361138761,1747301483110,-154.0,0.00011549,2]
[361138762,1747301483119,-1306.0,0.00011549,2]
[361138763,1747301483128,-4428.19185003,0.00011549,2]
[361138764,1747301483140,-2395.80814997,0.00011549,2]
[361138765,1747301483150,-1260.22531908,0.00011549,2]
[361138766,1747301483161,-2774.77468092,0.00011549,2]
[361138767,1747301483170,-838.0,0.00011549,2]
[361138768,1747301483179,-400.0,0.00011636,2]
[361138769,1747301483188,-400.0,0.00011636,2]
[361138770,1747301483198,-400.0,0.00011636,2]
[361138771,1747301483207,-400.0,0.00011636,2]
[361138772,1747301483216,-402.78284114,0.00011636,2]
[361138773,1747301483226,-190.28414693,0.00011636,2]
[361138774,1747301483235,-159.76737381,0.00011636,2]
[361138775,1747301483244,-412.36683234,0.00011636,2]
[361138776,1747301483253,-402.49239454,0.00011636,2]
[361138777,1747301483262,-405.72320909,0.00011636,2]
[361138778,1747301483271,-400.0,0.00011636,2]
[361138779,1747301483281,-400.0,0.00011636,2]
[361138780,1747301483290,-400.0,0.00011636,2]
[361138781,1747301483300,-402.05523416,0.00011636,2]
[361138782,1747301483309,-400.0,0.00011636,2]
[361138783,1747301483319,-479.09,0.00011636,2]
[361138784,1747301483329,-400.0,0.00011636,2]
[361138785,1747301483340,-400.0,0.00011636,2]
[361138786,1747301483349,-400.0,0.00011636,2]
[361138787,1747301483359,-400.0,0.00011636,2]
[361138788,1747301483368,-400.0,0.00011636,2]
[361138789,1747301483378,-400.0,0.00011636,2]
[361138790,1747301483387,-400.0,0.00011636,2]
[361138791,1747301483397,-400.0,0.00011636,2]
[361138792,1747301483406,-400.0,0.00011636,2]
[361138793,1747301483416,-400.0,0.00011636,2]
[361138794,1747301483426,-401.66595073,0.00011637,2]
[361138795,1747301483436,-456.33,0.00011637,2]
[361138796,1747301483446,-400.0,0.00011637,2]
[361138797,1747301483456,-659.22,0.00011637,2]
[361138798,1747301483465,-3.90684199,0.00011637,2]
[361138799,1747301483486,-396.09315801,0.00011637,2]
[361138800,1747301483496,-400.0,0.00011637,2]
[361138801,1747301483505,-418.79,0.00011637,2]
[361138802,1747301483515,-426.45,0.00011637,2]
[361138803,1747301483525,-400.0,0.00011637,2]
[361138804,1747301483535,-1363.07,0.00011637,2]
[361138805,1747301483545,-638.54,0.00011637,2]
[361138806,1747301483555,-1376.13,0.00011637,2]
[361138807,1747301483565,-230.46,0.00011638,2]
[361138808,1747301483575,-482.04,0.00011638,2]
[361138809,1747301483585,-3724.74,0.00011638,2]
[361138810,1747301483595,-400.0,0.00011638,2]
[361138811,1747301483604,-400.0,0.00011638,2]
[361138812,1747301483614,-1766.73,0.00011638,2]
[361138813,1747301483623,-1066.69,0.00011638,2]
[361138814,1747301483633,-1342.99,0.00011638,2]
[361138815,1747301483644,-400.0,0.00011638,2]
[361138816,1747301483654,-487.73,0.00011638,2]
[361138817,1747301483663,-400.0,0.00011638,2]
[361138818,1747301483673,-671.31,0.00011638,2]
[361138819,1747301483683,-1156.4,0.00011638,2]
[361138820,1747301483697,-956.67,0.00011638,2]
[361138821,1747301483707,-660.77,0.00011638,2]
[361138822,1747301483721,-400.0,0.00011638,2]
[361138823,1747301483733,-499.74,0.00011638,2]
[361138824,1747301483743,-2635.91,0.00011638,2]
[361138825,1747301483753,-511.43,0.00011638,2]
[361138826,1747301483763,-400.0,0.00011638,2]
[361138827,1747301483773,-400.0,0.00011638,2]
[361138828,1747301483784,-2230.92,0.00011638,2]
[361138829,1747301483793,-400.0,0.00011638,2]
[361138830,1747301483803,-400.0,0.00011638,2]
[361138831,1747301483813,-498.73,0.00011638,2]
[361138832,1747301483823,-968.27,0.00011638,2]
[361138833,1747301483833,-400.0,0.00011638,2]
[361138834,1747301483842,-418.14,0.00011638,2]
[361138835,1747301483852,-400.0,0.00011638,2]
[361138836,1747301483865,-1909.09,0.00011638,2]
[361138837,1747301483876,-559.73,0.00011638,2]
[361138838,1747301483886,-638.58,0.00011638,2]
[361138839,1747301483896,-400.0,0.00011638,2]
[361138840,1747301483905,-4304.42,0.00011638,2]
[361138841,1747301483915,-617.27,0.00011638,2]
[361138842,1747301483926,-400.0,0.00011638,2]
[361138843,1747301483935,-400.0,0.00011638,2]
[361138844,1747301483945,-11850.48,0.00011638,2]
[361138845,1747301483955,-430.26,0.00011638,2]
[361138846,1747301483965,-400.0,0.0001165,2]
[361138847,1747301483974,-400.0,0.0001165,2]
[361138848,1747301483984,-400.0,0.0001165,2]
[361138849,1747301483994,-435.02,0.0001165,2]
[361138850,1747301484003,-400.0,0.0001165,2]
[361138851,1747301484014,-546.36,0.0001165,2]
[361138852,1747301484029,-400.0,0.0001165,2]
[361138853,1747301484038,-400.0,0.0001165,2]
[361138854,1747301484049,-400.0,0.0001165,2]
[361138855,1747301484060,-400.0,0.0001165,2]